[Event "*** Titled Tuesday Blitz"]
[Site "Chess.com"]
[Date "2020.02.04"]
[Round "2"]
[White "MITerryble"]
[Black "Snegokhod"]
[Result "1-0"]
[WhiteElo "2936"]
[BlackElo "2623"]
[TimeControl "180+2"]
[EndTime "9:27:36 PST"]
[Termination "MITerryble won by resignation"]

1. e4 {[%clk 0:03:01.9]} 1... c5 {[%clk 0:02:59.9]} 2. Nf3 {[%clk 0:03:03]} 2...
d6 {[%clk 0:02:59.9]} 3. Bb5+ {[%clk 0:03:04.1]} 3... Bd7 {[%clk 0:02:59.7]} 4.
Bxd7+ {[%clk 0:03:05.3]} 4... Qxd7 {[%clk 0:03:00.5]} 5. O-O {[%clk 0:03:07.2]}
5... Nc6 {[%clk 0:03:01.1]} 6. c3 {[%clk 0:03:08.5]} 6... Nf6 {[%clk 0:03:00.8]}
7. d4 {[%clk 0:03:09.9]} 7... e5 {[%clk 0:02:54.8]} 8. dxe5 {[%clk 0:03:08.5]}
8... dxe5 {[%clk 0:02:55]} 9. Qe2 {[%clk 0:03:08.5]} 9... Be7 {[%clk 0:02:54.5]}
10. Bg5 {[%clk 0:03:09.5]} 10... O-O {[%clk 0:02:54.4]} 11. Bxf6 {[%clk
0:03:10.5]} 11... Bxf6 {[%clk 0:02:54.7]} 12. Na3 {[%clk 0:03:12.2]} 12... a6
{[%clk 0:02:54.7]} 13. Nc4 {[%clk 0:03:12.6]} 13... Qe6 {[%clk 0:02:52.2]} 14.
Nb6 {[%clk 0:03:10.7]} 14... Rad8 {[%clk 0:02:52]} 15. Nd5 {[%clk 0:03:11.9]}
15... Ne7 {[%clk 0:02:47.2]} 16. Ne3 {[%clk 0:03:09.1]} 16... b5 {[%clk
0:02:45.6]} 17. a4 {[%clk 0:03:09]} 17... c4 {[%clk 0:02:46.3]} 18. axb5 {[%clk
0:03:09.9]} 18... axb5 {[%clk 0:02:47.1]} 19. Rfd1 {[%clk 0:02:55.4]} 19... h6
{[%clk 0:02:43.7]} 20. h4 {[%clk 0:02:51.9]} 20... g6 {[%clk 0:02:42.9]} 21. g3
{[%clk 0:02:52.2]} 21... Bg7 {[%clk 0:02:40.6]} 22. Rxd8 {[%clk 0:02:53.4]}
22... Rxd8 {[%clk 0:02:41.1]} 23. Rd1 {[%clk 0:02:55.3]} 23... Rd7 {[%clk
0:02:27.8]} 24. Rd2 {[%clk 0:02:50.4]} 24... f5 {[%clk 0:02:24.7]} 25. exf5
{[%clk 0:02:48.6]} 25... gxf5 {[%clk 0:02:25.9]} 26. Rxd7 {[%clk 0:02:38.2]}
26... Qxd7 {[%clk 0:02:26.5]} 27. Nc2 {[%clk 0:02:40.1]} 27... Qd3 {[%clk
0:02:21.6]} 28. Kf1 {[%clk 0:02:38]} 28... e4 {[%clk 0:02:15.3]} 29. Nfd4 {[%clk
0:02:38.8]} 29... f4 {[%clk 0:02:10]} 30. gxf4 {[%clk 0:02:26.3]} 30... Nd5
{[%clk 0:02:01.8]} 31. Nxb5 {[%clk 0:01:57.5]} 31... Nxf4 {[%clk 0:01:53.8]} 32.
Qxd3 {[%clk 0:01:58.4]} 32... Nxd3 {[%clk 0:01:35.9]} 33. Nd6 {[%clk 0:01:58.6]}
33... Nxb2 {[%clk 0:01:36.2]} 34. Nxe4 {[%clk 0:01:57.9]} 34... Na4 {[%clk
0:01:37.1]} 35. Ne3 {[%clk 0:01:57.5]} 35... Nxc3 {[%clk 0:01:38]} 36. Nxc3
{[%clk 0:01:57.9]} 36... Bxc3 {[%clk 0:01:38.9]} 37. Nxc4 {[%clk 0:01:59.8]}
37... Kf7 {[%clk 0:01:37.8]} 38. Kg2 {[%clk 0:01:59.9]} 38... Kg6 {[%clk
0:01:37.6]} 39. Ne3 {[%clk 0:01:58.6]} 39... Kh5 {[%clk 0:01:35.5]} 40. Kh3
{[%clk 0:01:59]} 40... Bd4 {[%clk 0:01:29.4]} 41. Kg3 {[%clk 0:01:53.2]} 41...
Be5+ {[%clk 0:01:20.3]} 42. Kh3 {[%clk 0:01:52.1]} 42... Bd4 {[%clk 0:01:21.3]}
43. Nd5 {[%clk 0:01:47.6]} 43... Kg6 {[%clk 0:01:07.9]} 44. Kg3 {[%clk
0:01:48.2]} 44... Kf5 {[%clk 0:01:06.5]} 45. Ne3+ {[%clk 0:01:47.7]} 45... Ke4
{[%clk 0:00:59.8]} 46. Ng2 {[%clk 0:01:41.2]} 46... Be5+ {[%clk 0:00:58.9]} 47.
Kg4 {[%clk 0:01:41.2]} 47... Bd4 {[%clk 0:00:58.9]} 48. f4 {[%clk 0:01:36.3]}
48... Bf6 {[%clk 0:00:54.9]} 49. h5 {[%clk 0:01:34.1]} 49... Bc3 {[%clk
0:00:49]} 50. Nh4 {[%clk 0:01:34.4]} 50... Bd2 {[%clk 0:00:45.5]} 51. Ng6 {[%clk
0:01:35.4]} 51... Bc1 {[%clk 0:00:43.4]} 52. f5 {[%clk 0:01:35.8]} 52... Bg5
{[%clk 0:00:44]} 53. Nf8 {[%clk 0:01:15.3]} 53... Ke5 {[%clk 0:00:33.9]} 54. Ne6
{[%clk 0:01:16.4]} 54... Bc1 {[%clk 0:00:29.9]} 55. Nc5 {[%clk 0:01:16.9]} 55...
Kf6 {[%clk 0:00:30.4]} 56. Ne4+ {[%clk 0:00:57.6]} 56... Ke5 {[%clk 0:00:31.5]}
57. Nf2 {[%clk 0:00:58.8]} 57... Kf6 {[%clk 0:00:31.8]} 58. Nd3 {[%clk
0:00:59.8]} 58... Bd2 {[%clk 0:00:32.2]} 59. Nc5 {[%clk 0:00:56.8]} 59... Bc1
{[%clk 0:00:31.2]} 60. Nd7+ {[%clk 0:00:54.3]} 60... Ke7 {[%clk 0:00:32.2]} 61.
Ne5 {[%clk 0:00:53.6]} 61... Kf6 {[%clk 0:00:33.2]} 62. Nf3 {[%clk 0:00:55.5]}
62... Be3 {[%clk 0:00:31.2]} 63. Ne1 {[%clk 0:00:56.2]} 63... Bd2 {[%clk
0:00:31.9]} 64. Nd3 {[%clk 0:00:57.1]} 64... Be3 {[%clk 0:00:31.1]} 65. Nb2
{[%clk 0:00:58.3]} 65... Bc1 {[%clk 0:00:31.6]} 66. Nc4 {[%clk 0:01:00.2]} 66...
Bg5 {[%clk 0:00:30.1]} 67. Nb6 {[%clk 0:00:57.8]} 67... Bc1 {[%clk 0:00:30.4]}
68. Nd5+ {[%clk 0:00:55.9]} 68... Ke5 {[%clk 0:00:31.6]} 69. Nc3 {[%clk
0:00:49.4]} 69... Kf6 {[%clk 0:00:31.6]} 70. Ne2 {[%clk 0:00:43.3]} 70... Be3
{[%clk 0:00:31.7]} 71. Ng3 {[%clk 0:00:44.6]} 71... Ke5 {[%clk 0:00:30.6]} 72.
Kf3 {[%clk 0:00:43.4]} 72... Bg5 {[%clk 0:00:28.5]} 73. Kg4 {[%clk 0:00:43.3]}
73... Bc1 {[%clk 0:00:28]} 74. Nf1 {[%clk 0:00:42.2]} 74... Kf6 {[%clk
0:00:27.3]} 75. Nh2 {[%clk 0:00:42.6]} 75... Bd2 {[%clk 0:00:24.6]} 76. Nf3
{[%clk 0:00:44.5]} 76... Bc3 {[%clk 0:00:25.7]} 77. Nh4 {[%clk 0:00:44]} 77...
Bd2 {[%clk 0:00:24.1]} 78. Ng6 {[%clk 0:00:44.8]} 78... Bc1 {[%clk 0:00:24.7]}
79. Nf4 {[%clk 0:00:45.8]} 79... Bd2 {[%clk 0:00:22.1]} 80. Nd3 {[%clk 0:00:39]}
80... Be3 {[%clk 0:00:21.8]} 81. Kf3 {[%clk 0:00:40.2]} 81... Bd2 {[%clk
0:00:19.6]} 82. Ke4 {[%clk 0:00:41.8]} 82... Kg5 {[%clk 0:00:19.7]} 83. Ke5
{[%clk 0:00:43]} 83... Kxh5 {[%clk 0:00:20.4]} 84. Ke6 {[%clk 0:00:44.5]} 84...
Bg5 {[%clk 0:00:20.2]} 85. Ne5 {[%clk 0:00:44]} 85... Bh4 {[%clk 0:00:17.8]} 86.
Ng6 {[%clk 0:00:42]} 86... Bg5 {[%clk 0:00:17.1]} 87. Ne5 {[%clk 0:00:43.1]}
87... Bh4 {[%clk 0:00:17.2]} 88. Nd7 {[%clk 0:00:44.5]} 88... Bg5 {[%clk
0:00:17.7]} 89. Nf6+ {[%clk 0:00:45.6]} 89... Kh4 {[%clk 0:00:17.6]} 90. Ne4
{[%clk 0:00:44.8]} 90... Bd8 {[%clk 0:00:17.9]} 91. Kd7 {[%clk 0:00:46]} 91...
Kg4 {[%clk 0:00:18.5]} 92. Nd6 {[%clk 0:00:46.3]} 92... Bg5 {[%clk 0:00:17.4]}
93. Ke6 {[%clk 0:00:47.4]} 93... h5 {[%clk 0:00:18.5]} 94. Nf7 {[%clk
0:00:48.8]} 94... Bh4 {[%clk 0:00:18.6]} 95. Ne5+ {[%clk 0:00:49]} 95... Kf4
{[%clk 0:00:18.9]} 96. Ng6+ {[%clk 0:00:50.1]} 96... Kg5 {[%clk 0:00:19.6]} 97.
Nxh4 {[%clk 0:00:52]} 97... Kxh4 {[%clk 0:00:20.8]} 98. f6 {[%clk 0:00:53.9]}
98... Kg3 {[%clk 0:00:22.5]} 99. f7 {[%clk 0:00:55.5]} 99... h4 {[%clk
0:00:24.4]} 100. f8=Q {[%clk 0:00:57.1]} 100... h3 {[%clk 0:00:26.3]} 101. Qf1
{[%clk 0:00:58.2]} 101... Kh2 {[%clk 0:00:26.8]} 102. Kf5 {[%clk 0:00:59]}
102... Kg3 {[%clk 0:00:26.8]} 103. Qg1+ {[%clk 0:01:00.4]} 1-0

[Event "*** Titled Tuesday Blitz"]
[Site "Chess.com"]
[Date "2020.02.04"]
[Round "2"]
[White "M1711"]
[Black "inegrepus"]
[Result "1-0"]
[WhiteElo "2520"]
[BlackElo "2250"]
[TimeControl "180+2"]
[EndTime "9:27:38 PST"]
[Termination "M1711 won by resignation"]

1. d4 {[%clk 0:03:01.9]} 1... Nf6 {[%clk 0:03:00]} 2. Bf4 {[%clk 0:03:00.8]}
2... d5 {[%clk 0:02:58.4]} 3. e3 {[%clk 0:03:01.6]} 3... e6 {[%clk 0:02:58.4]}
4. Nf3 {[%clk 0:02:55.5]} 4... Bd6 {[%clk 0:02:59.2]} 5. Bg3 {[%clk 0:02:54.7]}
5... O-O {[%clk 0:02:59.7]} 6. Nbd2 {[%clk 0:02:53.6]} 6... b6 {[%clk
0:03:00.8]} 7. c3 {[%clk 0:02:53.2]} 7... Ba6 {[%clk 0:03:00.7]} 8. Bxa6 {[%clk
0:02:53.3]} 8... Nxa6 {[%clk 0:03:02.6]} 9. O-O {[%clk 0:02:50.1]} 9... Bxg3
{[%clk 0:03:02.3]} 10. hxg3 {[%clk 0:02:52]} 10... c5 {[%clk 0:03:03.2]} 11. Qe2
{[%clk 0:02:51.8]} 11... Nc7 {[%clk 0:02:58.4]} 12. e4 {[%clk 0:02:52.5]} 12...
cxd4 {[%clk 0:02:57.4]} 13. Nxd4 {[%clk 0:02:53.8]} 13... dxe4 {[%clk
0:02:54.7]} 14. Nxe4 {[%clk 0:02:55.7]} 14... Nxe4 {[%clk 0:02:55.3]} 15. Qxe4
{[%clk 0:02:57.6]} 15... Qd5 {[%clk 0:02:56.5]} 16. Qh4 {[%clk 0:02:48.6]} 16...
Qd8 {[%clk 0:02:42.8]} 17. Qg4 {[%clk 0:02:42.9]} 17... Nd5 {[%clk 0:02:39.1]}
18. Rad1 {[%clk 0:02:42]} 18... Nf6 {[%clk 0:02:32.2]} 19. Qh4 {[%clk
0:02:38.5]} 19... Nd5 {[%clk 0:02:27.6]} 20. Qg4 {[%clk 0:02:33.3]} 20... Nf6
{[%clk 0:02:27.4]} 21. Qf3 {[%clk 0:02:31.8]} 21... Qd5 {[%clk 0:02:26]} 22.
Qxd5 {[%clk 0:02:29.1]} 22... Nxd5 {[%clk 0:02:26]} 23. Rd2 {[%clk 0:02:27.4]}
23... Rac8 {[%clk 0:02:20.5]} 24. Rfd1 {[%clk 0:02:20.6]} 24... g6 {[%clk
0:02:19]} 25. Kf1 {[%clk 0:02:12.1]} 25... Kg7 {[%clk 0:02:16.8]} 26. Ke2 {[%clk
0:02:03]} 26... Rc5 {[%clk 0:02:04]} 27. Nb3 {[%clk 0:01:58.4]} 27... Rc7 {[%clk
0:02:02.1]} 28. Rd4 {[%clk 0:01:53.2]} 28... Rfc8 {[%clk 0:01:59.2]} 29. R1d2
{[%clk 0:01:47.5]} 29... Rc4 {[%clk 0:01:51.3]} 30. Kf3 {[%clk 0:01:41.2]} 30...
h5 {[%clk 0:01:44.9]} 31. a4 {[%clk 0:01:24.3]} 31... a5 {[%clk 0:01:28.6]} 32.
Na1 {[%clk 0:00:58.4]} 32... R8c7 {[%clk 0:01:26.1]} 33. Nc2 {[%clk 0:00:56.9]}
33... R4c6 {[%clk 0:01:11.2]} 34. Na3 {[%clk 0:00:52.2]} 34... Rc5 {[%clk
0:01:04.1]} 35. Nb5 {[%clk 0:00:51.6]} 35... Rc8 {[%clk 0:01:03.4]} 36. Nd6
{[%clk 0:00:46.3]} 36... R8c6 {[%clk 0:00:59.6]} 37. Nb5 {[%clk 0:00:37.9]}
37... Rc8 {[%clk 0:00:57.9]} 38. Rd1 {[%clk 0:00:32]} 38... R8c6 {[%clk
0:00:55.4]} 39. Ke2 {[%clk 0:00:24.1]} 39... Rc8 {[%clk 0:00:54.9]} 40. g4
{[%clk 0:00:22.8]} 40... hxg4 {[%clk 0:00:54.3]} 41. Rxg4 {[%clk 0:00:22.3]}
41... Rc4 {[%clk 0:00:50.5]} 42. Rgd4 {[%clk 0:00:20.9]} 42... R4c5 {[%clk
0:00:45.9]} 43. Nd6 {[%clk 0:00:20.4]} 43... R8c6 {[%clk 0:00:45.6]} 44. Nb5
{[%clk 0:00:21]} 44... Rc8 {[%clk 0:00:46]} 45. g3 {[%clk 0:00:22.5]} 45... R8c6
{[%clk 0:00:45.8]} 46. Na7 {[%clk 0:00:23.6]} 46... Rc7 {[%clk 0:00:45.8]} 47.
Nb5 {[%clk 0:00:23.6]} 47... R7c6 {[%clk 0:00:47.1]} 48. Kf3 {[%clk 0:00:24.6]}
48... Rc8 {[%clk 0:00:47.4]} 49. Kg2 {[%clk 0:00:25.4]} 49... R8c6 {[%clk
0:00:47.4]} 50. R4d2 {[%clk 0:00:26.3]} 50... Rc8 {[%clk 0:00:47.4]} 51. Kh3
{[%clk 0:00:23.6]} 51... R8c6 {[%clk 0:00:48.1]} 52. Rd4 {[%clk 0:00:24.9]}
52... Rc4 {[%clk 0:00:48.5]} 53. R1d2 {[%clk 0:00:24.4]} 53... R4c5 {[%clk
0:00:48.3]} 54. Re4 {[%clk 0:00:22.1]} 54... Rc4 {[%clk 0:00:46.7]} 55. Rdd4
{[%clk 0:00:21.3]} 55... R4c5 {[%clk 0:00:47.5]} 56. Kg2 {[%clk 0:00:20]} 56...
Rc8 {[%clk 0:00:47.9]} 57. Kh2 {[%clk 0:00:20.9]} 57... Rh8+ {[%clk 0:00:48.1]}
58. Kg1 {[%clk 0:00:22]} 58... Rhc8 {[%clk 0:00:49.3]} 59. Re1 {[%clk
0:00:22.3]} 59... R8c6 {[%clk 0:00:48.8]} 60. Red1 {[%clk 0:00:23.2]} 60... Rc8
{[%clk 0:00:49.3]} 61. Nd6 {[%clk 0:00:24.3]} 61... R8c6 {[%clk 0:00:49.8]} 62.
Nb5 {[%clk 0:00:19.6]} 62... Rc8 {[%clk 0:00:50.2]} 63. Kf1 {[%clk 0:00:21.1]}
63... R8c6 {[%clk 0:00:49.1]} 64. Ra1 {[%clk 0:00:21.9]} 64... Rc8 {[%clk
0:00:49.3]} 65. Ke2 {[%clk 0:00:22.9]} 65... R8c6 {[%clk 0:00:49.4]} 66. Kd3
{[%clk 0:00:24.1]} 66... Rc8 {[%clk 0:00:49.9]} 67. Rh4 {[%clk 0:00:24.5]} 67...
R8c6 {[%clk 0:00:49.6]} 68. Rah1 {[%clk 0:00:24.7]} 68... Nf6 {[%clk 0:00:46.5]}
69. Nd4 {[%clk 0:00:23.7]} 69... Rc8 {[%clk 0:00:42.1]} 70. Re1 {[%clk
0:00:21.5]} 70... Nd5 {[%clk 0:00:37.8]} 71. Reh1 {[%clk 0:00:20]} 71... Nf6
{[%clk 0:00:37.7]} 72. f3 {[%clk 0:00:20.3]} 72... R8c7 {[%clk 0:00:35.1]} 73.
Re1 {[%clk 0:00:20]} 73... Rc8 {[%clk 0:00:32]} 74. g4 {[%clk 0:00:20.8]} 74...
Nd5 {[%clk 0:00:32.5]} 75. g5 {[%clk 0:00:14.6]} 75... R8c7 {[%clk 0:00:25.7]}
76. Reh1 {[%clk 0:00:14.3]} 76... Kf8 {[%clk 0:00:26.6]} 77. Rh8+ {[%clk
0:00:14.2]} 77... Ke7 {[%clk 0:00:27.9]} 78. Rb8 {[%clk 0:00:12.2]} 78... e5
{[%clk 0:00:21.7]} 79. Nb5 {[%clk 0:00:09.1]} 79... Rd7 {[%clk 0:00:21.3]} 80.
Kc2 {[%clk 0:00:08.3]} 80... Ne3+ {[%clk 0:00:21.6]} 81. Kb3 {[%clk 0:00:08.8]}
81... Nc4 {[%clk 0:00:17.7]} 82. Rhh8 {[%clk 0:00:08.8]} 82... Nd2+ {[%clk
0:00:18.5]} 83. Kc2 {[%clk 0:00:09]} 83... Ke6 {[%clk 0:00:19.5]} 84. Rh3 {[%clk
0:00:05.9]} 84... Kf5 {[%clk 0:00:20.1]} 85. Rxb6 {[%clk 0:00:06.9]} 85... Kxg5
{[%clk 0:00:20.5]} 86. Ra6 {[%clk 0:00:05.4]} 86... Kf5 {[%clk 0:00:20.9]} 87.
Rxa5 {[%clk 0:00:05.7]} 87... Rc8 {[%clk 0:00:21.7]} 88. Ra6 {[%clk 0:00:05.9]}
88... f6 {[%clk 0:00:21.8]} 89. Nd6+ {[%clk 0:00:06.6]} 89... Kf4 {[%clk
0:00:21.2]} 90. Nxc8 {[%clk 0:00:06.7]} 90... Nxf3 {[%clk 0:00:18.9]} 91. Rxf6+
{[%clk 0:00:07]} 91... Kg4 {[%clk 0:00:19.5]} 92. Rfxf3 {[%clk 0:00:07.8]} 92...
Rd2+ {[%clk 0:00:17.9]} 1-0

[Event "*** Titled Tuesday Blitz"]
[Site "Chess.com"]
[Date "2020.02.04"]
[Round "2"]
[White "WPWPWP-2015"]
[Black "hongnhung1234"]
[Result "1-0"]
[WhiteElo "2550"]
[BlackElo "2270"]
[TimeControl "180+2"]
[EndTime "9:28:21 PST"]
[Termination "WPWPWP-2015 won by checkmate"]

1. d4 {[%clk 0:03:01.9]} 1... Nf6 {[%clk 0:02:59.7]} 2. c4 {[%clk 0:03:01.4]}
2... e6 {[%clk 0:03:01.6]} 3. Nf3 {[%clk 0:03:01.5]} 3... b6 {[%clk 0:03:01.9]}
4. g3 {[%clk 0:03:00.4]} 4... Bb7 {[%clk 0:03:03.3]} 5. Bg2 {[%clk 0:03:00.3]}
5... Be7 {[%clk 0:03:04.8]} 6. O-O {[%clk 0:03:01.2]} 6... O-O {[%clk
0:03:06.3]} 7. Nc3 {[%clk 0:03:02.5]} 7... Ne4 {[%clk 0:03:07.8]} 8. Qc2 {[%clk
0:03:00.9]} 8... Nxc3 {[%clk 0:03:08.5]} 9. Qxc3 {[%clk 0:03:00.4]} 9... f5
{[%clk 0:03:09.4]} 10. b3 {[%clk 0:02:53.5]} 10... d6 {[%clk 0:03:08.9]} 11. Bb2
{[%clk 0:02:54]} 11... Nd7 {[%clk 0:03:08.2]} 12. Rae1 {[%clk 0:02:49.8]} 12...
Bf6 {[%clk 0:03:05.7]} 13. Qc1 {[%clk 0:02:46.7]} 13... Qe7 {[%clk 0:02:57.9]}
14. d5 {[%clk 0:02:36.2]} 14... Bxb2 {[%clk 0:02:54]} 15. Qxb2 {[%clk
0:02:36.6]} 15... e5 {[%clk 0:02:55.3]} 16. e4 {[%clk 0:02:33.4]} 16... Nc5
{[%clk 0:02:55.9]} 17. exf5 {[%clk 0:02:23.7]} 17... Nd3 {[%clk 0:02:54.8]} 18.
Qc2 {[%clk 0:02:24.1]} 18... Nxe1 {[%clk 0:02:53.7]} 19. Rxe1 {[%clk 0:02:25.3]}
19... Rae8 {[%clk 0:02:50.3]} 20. Nd4 {[%clk 0:02:16.5]} 20... exd4 {[%clk
0:02:27.6]} 21. Rxe7 {[%clk 0:02:14]} 21... Rxe7 {[%clk 0:02:29.5]} 22. Be4
{[%clk 0:02:06.4]} 22... Rfe8 {[%clk 0:02:22.1]} 23. f3 {[%clk 0:02:06.4]} 23...
Bc8 {[%clk 0:02:21.2]} 24. g4 {[%clk 0:02:04]} 24... Re5 {[%clk 0:02:19.4]} 25.
Qd3 {[%clk 0:02:01.9]} 25... Kf7 {[%clk 0:01:48.5]} 26. Kf2 {[%clk 0:01:55.7]}
26... Bd7 {[%clk 0:01:48.7]} 27. h4 {[%clk 0:01:48.4]} 27... h6 {[%clk
0:01:47.3]} 28. h5 {[%clk 0:01:45]} 28... a5 {[%clk 0:01:44.4]} 29. Qxd4 {[%clk
0:01:44.8]} 29... Rg8 {[%clk 0:01:37.4]} 30. Qd2 {[%clk 0:01:37.1]} 30... Ree8
{[%clk 0:01:35.4]} 31. Qf4 {[%clk 0:01:30.4]} 31... Rgf8 {[%clk 0:01:28.3]} 32.
a4 {[%clk 0:01:28.8]} 32... Kg8 {[%clk 0:01:24.9]} 33. Ke3 {[%clk 0:01:25.6]}
33... Rf7 {[%clk 0:01:24.5]} 34. Kd4 {[%clk 0:01:25.3]} 34... Rf6 {[%clk
0:01:22.9]} 35. Qc1 {[%clk 0:01:22.4]} 35... Kf8 {[%clk 0:01:20.9]} 36. Bd3
{[%clk 0:01:17.1]} 36... Kg8 {[%clk 0:01:18]} 37. Be4 {[%clk 0:01:16]} 37... Rf7
{[%clk 0:01:15.6]} 38. Qf4 {[%clk 0:01:13.2]} 38... Kf8 {[%clk 0:01:14]} 39. Qh2
{[%clk 0:01:02.8]} 39... Ke7 {[%clk 0:01:11.3]} 40. Qh4+ {[%clk 0:01:02.3]}
40... Kf8 {[%clk 0:01:07.6]} 41. Bd3 {[%clk 0:01:00.4]} 41... Kg8 {[%clk
0:01:04.1]} 42. f4 {[%clk 0:00:59]} 42... Bc8 {[%clk 0:01:02.3]} 43. Qg3 {[%clk
0:00:52.1]} 43... Bd7 {[%clk 0:00:54.9]} 44. Qg2 {[%clk 0:00:33.1]} 44... Re1
{[%clk 0:00:52.5]} 45. Qf2 {[%clk 0:00:29.4]} 45... Ree7 {[%clk 0:00:48.5]} 46.
Qh4 {[%clk 0:00:29.4]} 46... Re8 {[%clk 0:00:47.2]} 47. Qh3 {[%clk 0:00:29.6]}
47... Rff8 {[%clk 0:00:45.8]} 48. Qf1 {[%clk 0:00:29.2]} 48... Kh8 {[%clk
0:00:42.5]} 49. Qf3 {[%clk 0:00:27.9]} 49... Re7 {[%clk 0:00:41.1]} 50. Qd1
{[%clk 0:00:23.8]} 50... Rd8 {[%clk 0:00:39.9]} 51. Bc2 {[%clk 0:00:20.7]} 51...
Rf8 {[%clk 0:00:38.3]} 52. Qd3 {[%clk 0:00:20.3]} 52... Kg8 {[%clk 0:00:36.4]}
53. Bb1 {[%clk 0:00:18]} 53... Re1 {[%clk 0:00:34.4]} 54. Bc2 {[%clk 0:00:17.6]}
54... Re7 {[%clk 0:00:32.7]} 55. f6 {[%clk 0:00:13.7]} 55... gxf6 {[%clk
0:00:30.9]} 56. Qg6+ {[%clk 0:00:14]} 56... Rg7 {[%clk 0:00:29.3]} 57. Qxh6
{[%clk 0:00:14.8]} 57... Bxg4 {[%clk 0:00:29.5]} 58. Bg6 {[%clk 0:00:12.3]}
58... Re7 {[%clk 0:00:27.5]} 59. f5 {[%clk 0:00:12.4]} 59... Bf3 {[%clk
0:00:26.1]} 60. Kd3 {[%clk 0:00:11]} 60... Be4+ {[%clk 0:00:25]} 61. Kc3 {[%clk
0:00:11.7]} 61... Rc8 {[%clk 0:00:23.1]} 62. Qf4 {[%clk 0:00:11.9]} 62... Rf8
{[%clk 0:00:22.8]} 63. b4 {[%clk 0:00:08.9]} 63... axb4+ {[%clk 0:00:20.8]} 64.
Kxb4 {[%clk 0:00:09.9]} 64... Kg7 {[%clk 0:00:22]} 65. h6+ {[%clk 0:00:08.7]}
65... Kh8 {[%clk 0:00:23.3]} 66. h7 {[%clk 0:00:09.7]} 66... Kg7 {[%clk
0:00:21.7]} 67. Qg4 {[%clk 0:00:10.3]} 67... Kh8 {[%clk 0:00:20.6]} 68. Kb5
{[%clk 0:00:09.8]} 68... Bd3 {[%clk 0:00:19]} 69. Qh3 {[%clk 0:00:10.2]} 69...
Be2 {[%clk 0:00:17.5]} 70. Qh6 {[%clk 0:00:10.5]} 70... Rb8 {[%clk 0:00:17.5]}
71. Qh4 {[%clk 0:00:10.7]} 71... Rf8 {[%clk 0:00:13.8]} 72. Kb4 {[%clk
0:00:10.3]} 72... Bf3 {[%clk 0:00:12.7]} 73. Qf4 {[%clk 0:00:10.1]} 73... Be2
{[%clk 0:00:11.8]} 74. Qh6 {[%clk 0:00:09.7]} 74... Rb8 {[%clk 0:00:11.1]} 75.
Qh4 {[%clk 0:00:09.8]} 75... Rf8 {[%clk 0:00:10.4]} 76. Qg3 {[%clk 0:00:09.6]}
76... Re4 {[%clk 0:00:09.6]} 77. Kc3 {[%clk 0:00:07.8]} 77... Rxc4+ {[%clk
0:00:08.5]} 78. Kd2 {[%clk 0:00:08.7]} 78... Rd4+ {[%clk 0:00:09]} 79. Kxe2
{[%clk 0:00:08.3]} 79... Rxd5 {[%clk 0:00:08.9]} 80. Qh4 {[%clk 0:00:06.7]}
80... Re5+ {[%clk 0:00:05.5]} 81. Kf3 {[%clk 0:00:07.6]} 81... d5 {[%clk
0:00:06]} 82. Qb4 {[%clk 0:00:07.2]} 82... c5 {[%clk 0:00:06.8]} 83. Qxb6 {[%clk
0:00:07.8]} 83... d4 {[%clk 0:00:08]} 84. Qd6 {[%clk 0:00:08.6]} 84... Kg7
{[%clk 0:00:08]} 85. Qc7+ {[%clk 0:00:09.1]} 85... Kh8 {[%clk 0:00:09.2]} 86.
Qd6 {[%clk 0:00:09.5]} 86... Kg7 {[%clk 0:00:10.3]} 87. Qd7+ {[%clk 0:00:10.5]}
87... Kh8 {[%clk 0:00:11]} 88. a5 {[%clk 0:00:11.8]} 88... Re3+ {[%clk
0:00:07.9]} 89. Kf2 {[%clk 0:00:12.4]} 89... Re5 {[%clk 0:00:05.8]} 90. Qd6
{[%clk 0:00:12.3]} 90... Kg7 {[%clk 0:00:06.1]} 91. a6 {[%clk 0:00:13.1]} 91...
Kh6 {[%clk 0:00:04]} 92. Qxf8+ {[%clk 0:00:13.6]} 92... Kg5 {[%clk 0:00:04.1]}
93. h8=Q {[%clk 0:00:13.4]} 93... Rxf5+ {[%clk 0:00:04.2]} 94. Bxf5 {[%clk
0:00:13.9]} 94... Kxf5 {[%clk 0:00:06.1]} 95. Qxc5+ {[%clk 0:00:14.3]} 95... Ke4
{[%clk 0:00:06.4]} 96. Qh7+ {[%clk 0:00:14.6]} 96... f5 {[%clk 0:00:07.1]} 97.
Qhxf5# {[%clk 0:00:14.2]} 1-0

[Event "*** Titled Tuesday Blitz"]
[Site "Chess.com"]
[Date "2020.02.04"]
[Round "3"]
[White "ShimanovAlex"]
[Black "Majkelopulos"]
[Result "1-0"]
[WhiteElo "2759"]
[BlackElo "2465"]
[TimeControl "180+2"]
[EndTime "9:33:04 PST"]
[Termination "ShimanovAlex won by resignation"]

1. d4 {[%clk 0:03:01.9]} 1... Nf6 {[%clk 0:03:00.7]} 2. Bg5 {[%clk 0:02:58.6]}
2... c5 {[%clk 0:03:01.6]} 3. d5 {[%clk 0:02:57.8]} 3... Qb6 {[%clk 0:03:02.6]}
4. Nc3 {[%clk 0:02:58.4]} 4... Qxb2 {[%clk 0:03:03.4]} 5. Bd2 {[%clk 0:02:58.7]}
5... Qb6 {[%clk 0:03:05]} 6. e4 {[%clk 0:02:59.3]} 6... e5 {[%clk 0:03:06.6]} 7.
f4 {[%clk 0:02:54.8]} 7... d6 {[%clk 0:03:07.9]} 8. Rb1 {[%clk 0:02:42.4]} 8...
Qc7 {[%clk 0:03:07]} 9. f5 {[%clk 0:02:42.9]} 9... a6 {[%clk 0:03:06.2]} 10. a4
{[%clk 0:02:43.4]} 10... Be7 {[%clk 0:03:07.7]} 11. g4 {[%clk 0:02:42.2]} 11...
h6 {[%clk 0:03:03.8]} 12. h4 {[%clk 0:02:42.2]} 12... Nbd7 {[%clk 0:02:55.7]}
13. Qf3 {[%clk 0:02:41.3]} 13... c4 {[%clk 0:02:54.5]} 14. g5 {[%clk 0:02:40]}
14... hxg5 {[%clk 0:02:55.3]} 15. hxg5 {[%clk 0:02:40.7]} 15... Rxh1 {[%clk
0:02:57.2]} 16. Qxh1 {[%clk 0:02:42.4]} 16... Ng8 {[%clk 0:02:56.3]} 17. Qh8
{[%clk 0:02:40.8]} 17... Kf8 {[%clk 0:02:57.7]} 18. Nf3 {[%clk 0:02:18.9]} 18...
Nc5 {[%clk 0:02:58.2]} 19. f6 {[%clk 0:02:19.1]} 19... gxf6 {[%clk 0:02:55.2]}
20. g6 {[%clk 0:02:20.1]} 20... fxg6 {[%clk 0:02:48.6]} 21. Bh6+ {[%clk
0:02:20.5]} 21... Ke8 {[%clk 0:02:47.9]} 22. Qxg8+ {[%clk 0:02:20.9]} 22... Kd7
{[%clk 0:02:49.5]} 23. Bh3+ {[%clk 0:02:22.5]} 23... f5 {[%clk 0:02:48.1]} 24.
exf5 {[%clk 0:02:24]} 24... Qa5 {[%clk 0:02:47.9]} 25. Bd2 {[%clk 0:02:18.2]}
25... gxf5 {[%clk 0:02:38.3]} 26. Bxf5+ {[%clk 0:02:18.3]} 26... Kc7 {[%clk
0:02:39.8]} 27. Nb5+ {[%clk 0:02:19.7]} 27... axb5 {[%clk 0:02:38.2]} 28. Bxa5+
{[%clk 0:02:20.5]} 28... Rxa5 {[%clk 0:02:38.9]} 29. Qxc8+ {[%clk 0:02:21.9]}
29... Kb6 {[%clk 0:02:39.4]} 30. Rxb5+ {[%clk 0:02:23.5]} 30... Rxb5 {[%clk
0:02:40.6]} 31. axb5 {[%clk 0:02:25.4]} 1-0